bitfinex/quotes_ETHUSD_20250930
["timestamp","ask_amount","ask_price","bid_price","bid_amount"]
[1759234915666,0.6403,4176.1,4176.0,15.89908141]
[1759234915867,3.03487867,4176.1,4176.0,18.62208141]
[1759234916178,3.57790732,4176.1,4176.0,15.89908141]
[1759234916373,3.57790732,4176.1,4176.0,18.62308141]
[1759234916679,3.57790732,4176.1,4176.0,14.5]
[1759234917773,2.39480805,4175.7,4175.6,2.724]
[1759234917971,3.03410805,4175.7,4175.6,3.516]
[1759234918178,3.58899085,4175.7,4175.6,3.516]
[1759234918383,1.1941828,4175.7,4175.6,18.016]
[1759234918552,0.6393,4175.7,4175.6,18.016]
[1759234919674,0.6393,4175.7,4175.6,15.292]
[1759234922879,3.03410805,4175.7,4175.6,15.294]
[1759234923853,0.6393,4175.7,4175.6,15.294]
[1759234924289,3.03410805,4175.7,4175.6,15.294]
[1759234924493,1.19418048,4175.7,4175.6,15.294]
[1759234924653,0.12,4175.9,4175.7,0.792]
[1759234924851,2.3947507,4175.8,4175.7,0.792]
[1759234925166,0.468,4175.8,4175.6,0.794]
[1759234925362,0.12,4175.9,4175.6,0.794]
[1759234925363,2.51471006,4175.9,4175.7,15.292]
[1759234925675,0.12,4175.9,4175.8,0.792]
[1759234925852,0.468,4175.9,4175.8,0.792]
[1759234926487,0.001,4176.1,4175.8,3.515]
[1759234926683,0.001,4176.1,4175.9,0.2459]
[1759234927000,0.469,4176.1,4176.0,2.724]
[1759234927487,3.03487867,4176.1,4176.0,2.724]
[1759234927698,0.94388787,4176.1,4175.8,0.792]
[1759234927887,0.6393,4176.0,4175.8,3.516]
[1759234928184,0.6393,4175.9,4175.8,3.516]
[1759234928585,0.468,4175.9,4175.8,3.516]
[1759234928903,0.001,4176.1,4175.8,3.516]
[1759234929893,0.001,4176.1,4175.9,0.2459]
[1759234930053,0.001,4176.1,4176.0,2.727]
[1759234931380,0.001,4176.1,4175.8,3.43264774]
[1759234931381,0.001,4176.6,4175.8,0.792]
[1759234931562,3.03392061,4176.1,4176.0,0.792]
[1759234931762,0.77203,4176.5,4176.0,0.792]
[1759234931996,2.39447312,4176.3,4176.0,0.792]
[1759234932169,0.4533,4176.3,4176.0,0.792]
[1759234932373,2.4,4176.5,4176.2,0.792]
[1759234932682,0.001,4176.6,4176.4,0.792]
[1759234933066,0.001,4176.6,4176.4,1.0172]
[1759234933371,0.001,4176.6,4176.4,0.792]
[1759234934114,0.001,4176.6,4176.5,18.021]
[1759234935180,0.001,4176.6,4176.5,23.15721987]
[1759234935583,0.001,4176.6,4176.5,21.09314933]
[1759234936912,0.001,4176.6,4176.5,20.41534933]
[1759234937084,0.001,4176.6,4176.5,18.021]
[1759234937391,0.001,4176.6,4176.5,20.41534933]
[1759234937796,0.001,4176.6,4176.5,20.53534933]
[1759234938184,0.001,4176.6,4176.5,18.141]
[1759234938612,0.001,4176.6,4176.5,18.14]
[1759234939221,0.001,4176.6,4176.5,15.412]
[1759234939384,0.001,4176.6,4176.5,18.14]
[1759234942927,0.6233,4176.6,4176.5,15.412]
[1759234943139,3.017592,4176.6,4176.5,18.139]
[1759234943693,0.6233,4176.6,4176.5,18.139]
[1759234944522,3.017592,4176.6,4176.5,15.292]
[1759234945099,3.55876925,4176.6,4176.5,15.292]
[1759234946424,3.017592,4176.6,4176.5,15.292]
[1759234946801,0.452,4176.6,4176.5,15.292]
[1759234946992,0.001,4176.6,4176.5,15.292]
[1759234947192,4.79312756,4176.9,4176.6,0.792]
[1759234947611,2.39418185,4176.8,4176.6,0.792]
[1759234947929,2.39898412,4176.9,4176.6,0.792]
[1759234947930,4.79310542,4176.9,4176.6,0.792]
[1759234948599,2.39898412,4176.9,4176.6,0.792]
[1759234948803,2.39898412,4176.9,4176.6,1.0285]
[1759234949122,0.51740179,4177.1,4176.8,0.792]
[1759234949337,0.001,4177.1,4177.0,0.792]
[1759234949809,0.001,4177.1,4177.0,15.292]
[1759234952429,2.39500541,4177.1,4177.0,15.292]
[1759234952913,0.001,4177.1,4177.0,15.292]
[1759234953721,0.001,4177.1,4177.0,15.9673]
[1759234954233,0.001,4177.1,4177.0,18.8133]
[1759234955204,0.001,4177.1,4177.0,18.138]
[1759234955928,0.001,4177.1,4177.0,18.3745]
[1759234956130,0.001,4177.1,4177.0,18.138]
[1759234958622,0.001,4177.1,4177.0,18.3745]
[1759234959037,0.001,4177.1,4177.0,18.8133]
[1759234959744,0.001,4177.1,4177.0,18.3745]
[1759234960939,0.001,4177.1,4177.0,15.412]
[1759234961152,0.001,4177.1,4177.0,15.292]
[1759234961964,2.39500541,4177.1,4177.0,15.292]
[1759234962117,3.81696137,4177.1,4177.0,14.5]
[1759234962317,3.93696137,4177.1,4177.0,14.5]
[1759234963216,4.26995596,4177.1,4176.6,0.792]
[1759234963419,0.6308,4177.0,4176.6,0.792]
[1759234963617,2.85365111,4176.9,4176.8,0.792]
[1759234964315,2.39415111,4176.9,4176.8,0.792]
[1759234965459,2.39408361,4177.0,4176.8,0.792]
[1759234965662,2.39408361,4177.0,4176.6,0.792]
[1759234966021,2.39408361,4177.0,4176.8,0.792]
[1759234966516,3.36440271,4177.1,4176.6,0.792]
[1759234966847,2.848,4177.1,4176.7,0.6859]
[1759234967014,5.24204272,4177.1,4176.9,0.792]
[1759234967214,2.85356272,4177.0,4176.9,0.792]
[1759234968042,2.39412004,4176.9,4176.8,15.292]
[1759234968246,3.02492004,4176.9,4176.8,15.292]
[1759234968771,2.85362004,4176.9,4176.8,15.292]
[1759234968925,4.18238109,4176.9,4176.8,14.5]
[1759234970174,9.47868109,4176.9,4176.2,0.912]
[1759234970467,2.39431118,4176.6,4176.4,0.792]
[1759234970627,2.39431118,4176.6,4176.4,15.292]
[1759234970834,2.85381118,4176.6,4176.4,15.292]
[1759234971144,2.51424933,4176.7,4176.4,15.292]
[1759234971345,2.39429333,4176.6,4176.4,15.292]
[1759234971870,0.12,4176.7,4176.4,15.5177]
[1759234972238,2.51424445,4176.7,4176.4,15.5177]
[1759234973381,0.12,4176.7,4176.4,15.5177]
[1759234973559,2.51424426,4176.7,4176.5,0.2257]
[1759234974260,2.51424426,4176.7,4176.4,0.792]
[1759234974570,2.51424426,4176.7,4176.5,14.5]
[1759234974739,2.394292,4176.6,4176.5,14.5]
[1759234976279,2.853792,4176.6,4176.5,14.5]
[1759234976938,0.4595,4176.6,4176.5,14.5]
[1759234977248,2.394292,4176.6,4176.5,14.5]
[1759234977666,3.025092,4176.6,4176.5,14.5]
[1759234978079,2.853792,4176.6,4176.5,14.5]
[1759234978982,3.90306016,4176.6,4176.5,14.5]
[1759234979542,3.73176016,4176.6,4176.5,14.5]
[1759234980280,2.39440666,4176.4,4176.3,0.002]
[1759234980571,4.91440666,4176.4,4176.3,0.002]
[1759234980773,7.34435997,4176.4,4176.3,0.002]
[1759234980977,7.97515997,4176.4,4176.3,0.002]
[1759234981281,7.80385997,4176.4,4176.3,0.002]
[1759234982473,7.97515997,4176.4,4176.3,0.002]
[1759234982848,12.02193908,4176.4,4176.3,0.002]
[1759234983175,12.65273908,4176.4,4176.3,0.002]
[1759234983547,17.33031819,4176.4,4176.3,0.002]
[1759234983751,12.74879167,4176.4,4176.3,0.002]
[1759234985985,17.42637078,4176.4,4176.3,0.002]
[1759234986451,2.39480805,4175.7,4175.6,0.002]
[1759234986656,12.31638716,4175.7,4175.6,0.002]
[1759234986888,13.46358987,4175.7,4175.6,0.002]
[1759234987469,13.29228987,4175.7,4175.6,0.002]
[1759234987673,13.46358987,4175.7,4175.6,0.002]
[1759234987873,14.43762216,4175.7,4175.6,0.002]
[1759234988669,2.39503748,4175.3,4175.2,1e-08]
[1759234988893,12.31661659,4175.3,4175.2,1e-08]
[1759234989094,13.4638193,4175.3,4175.2,1e-08]
[1759234992612,13.55989727,4175.3,4175.2,1e-08]
[1759234992908,15.27737597,4175.3,4175.2,1e-08]
[1759234993896,11.80058328,4175.3,4175.2,1e-08]
[1759234994191,9.33060146,4175.3,4175.2,0.71530001]
[1759234994392,9.33060146,4175.3,4175.2,0.24340001]
[1759234994576,14.95571076,4175.3,4175.2,1e-08]
[1759234995176,15.07509845,4175.3,4175.2,1e-08]
[1759234995376,15.24639845,4175.3,4175.2,1e-08]
[1759234995770,14.64209845,4175.3,4175.2,1e-08]
[1759234996194,15.08059845,4175.3,4175.2,1e-08]
[1759234996397,12.35659845,4175.3,4175.2,1e-08]
[1759234996564,15.08159845,4175.3,4175.2,1e-08]
[1759234996886,14.64409845,4175.3,4175.2,1e-08]
[1759234997500,11.91809845,4175.3,4175.2,1e-08]
[1759234997689,14.64409845,4175.3,4175.2,1e-08]
[1759234998369,15.25389845,4175.3,4175.2,1e-08]
[1759235000970,15.08259845,4175.3,4175.2,1e-08]
[1759235001192,14.64409845,4175.3,4175.2,1e-08]
[1759235001409,15.08259845,4175.3,4175.2,1e-08]
[1759235003200,15.25389845,4175.3,4175.2,1e-08]
[1759235003710,15.08259845,4175.3,4175.2,1e-08]
[1759235004609,15.25389845,4175.3,4175.2,1e-08]
[1759235005809,14.64409845,4175.3,4175.2,1e-08]
[1759235008091,9.84713165,4175.3,4175.2,0.68040001]
[1759235008419,5.63456767,4175.3,4175.2,0.68040001]
[1759235008579,5.12003748,4175.3,4175.2,0.68040001]
[1759235008785,7.52003748,4175.3,4175.2,0.68040001]
[1759235009202,7.47003748,4175.3,4175.2,0.68040001]
[1759235009511,7.47003748,4175.3,4175.2,15.18040001]
[1759235010306,12.14761659,4175.3,4175.2,14.50000001]
[1759235010511,12.66214678,4175.3,4175.2,14.50000001]
[1759235010717,12.66214678,4175.3,4175.2,14.72620001]
[1759235011389,12.66214678,4175.3,4175.2,0.22620001]
[1759235011712,12.66214678,4175.3,4175.2,0.68040001]
[1759235012682,7.98456767,4175.3,4175.2,0.68040001]
[1759235015614,5.25956767,4175.3,4175.2,1e-08]
[1759235015789,5.25956767,4175.3,4175.2,0.68040001]
[1759235015790,7.98556767,4175.3,4175.2,0.68040001]
[1759235016614,5.64053019,4175.3,4175.2,0.68040001]
[1759235016812,4.79503748,4175.3,4175.2,1.47240001]
[1759235017397,2.4,4175.3,4175.2,1.47240001]
[1759235017622,2.91453019,4175.3,4175.2,1.47240001]
[1759235017923,5.30956767,4175.3,4175.2,1.47240001]
[1759235018119,4.79503748,4175.3,4175.2,1.47240001]
[1759235019729,4.79503748,4175.3,4175.2,15.97240001]
[1759235021141,2.4,4175.3,4175.2,15.97240001]
[1759235021651,4.79603748,4175.3,4175.2,15.97240001]
[1759235022929,4.79603748,4175.3,4175.2,1.47240001]
[1759235023225,4.79603748,4175.3,4175.2,0.79200001]
[1759235023630,4.79603748,4175.3,4175.2,1.02690001]
[1759235024619,4.79603748,4175.3,4175.2,1.47590001]
[1759235025425,7.52103748,4175.3,4175.2,1.47590001]
[1759235025932,5.126,4175.3,4175.2,1.47590001]
[1759235026138,5.125,4175.3,4175.2,1.47590001]
[1759235026312,2.401,4175.3,4175.2,1.63569001]
[1759235026511,0.001,4175.3,4175.2,1.75569001]
[1759235026913,2.39603748,4175.3,4175.2,0.91200001]
[1759235027105,2.39603748,4175.3,4175.2,1e-08]
[1759235027307,5.12103748,4175.3,4175.2,1e-08]
[1759235029033,7.96103748,4175.3,4175.2,1e-08]
[1759235029233,8.4776985,4175.3,4175.2,1e-08]
[1759235029433,10.11862808,4175.3,4175.2,1e-08]
[1759235029640,9.67862808,4175.3,4175.2,1e-08]
[1759235030223,8.0376985,4175.3,4175.2,1e-08]
[1759235030614,7.52103748,4175.3,4175.2,0.23490001]
[1759235030822,7.52103748,4175.3,4175.2,0.68390001]
[1759235031452,7.52103748,4175.3,4175.2,0.23490001]
[1759235031660,7.52103748,4175.3,4175.2,1e-08]
[1759235033860,7.52103748,4175.3,4175.2,0.23490001]
[1759235034735,7.52103748,4175.3,4175.2,0.68390001]
[1759235035324,8.0376985,4175.3,4175.2,0.23490001]
[1759235036053,7.52103748,4175.3,4175.2,0.23490001]
[1759235036235,8.0376985,4175.3,4175.2,0.23490001]
[1759235038558,8.0376985,4175.3,4175.2,1e-08]
[1759235041563,9.61758478,4175.3,4175.2,1e-08]
[1759235042368,9.78888478,4175.3,4175.2,1e-08]
[1759235042666,9.88495768,4175.3,4175.2,1e-08]
[1759235044637,4.79509484,4175.2,4175.1,0.002]
[1759235044835,10.84842269,4175.2,4175.1,0.002]
[1759235045035,13.48089106,4175.2,4175.1,0.002]
[1759235045231,14.60323791,4175.2,4175.1,0.002]
[1759235045432,7.45292423,4175.2,4175.1,0.002]
[1759235045660,8.15575586,4175.2,4175.1,0.002]
[1759235046265,8.15643487,4175.2,4175.1,0.002]
[1759235046571,8.76773487,4175.2,4175.1,0.002]
[1759235046970,8.59643487,4175.2,4175.1,0.002]
[1759235047160,8.76773487,4175.2,4175.1,0.002]
[1759235047361,10.54937471,4175.2,4175.1,0.002]
[1759235049066,10.37807471,4175.2,4175.1,0.002]
[1759235049264,9.93807471,4175.2,4175.1,0.002]
[1759235049568,10.37807471,4175.2,4175.1,0.002]
[1759235049762,7.21407471,4175.2,4175.1,0.002]
[1759235049987,9.93807471,4175.2,4175.1,0.002]
[1759235051391,9.93807471,4175.2,4175.1,0.2369]
[1759235051799,8.15743487,4175.2,4175.1,0.2369]
[1759235051964,8.15743487,4175.2,4175.1,0.6859]
[1759235053681,8.15743487,4175.2,4175.1,0.2369]
[1759235054601,8.15743487,4175.2,4175.1,0.002]
[1759235054809,8.59743487,4175.2,4175.1,0.002]
[1759235054968,9.8553391,4175.2,4175.1,0.002]
[1759235055779,9.8553391,4175.2,4175.1,0.2494]
[1759235058110,9.8563391,4175.2,4175.1,0.2494]
[1759235059315,9.8563391,4175.2,4175.1,0.002]
[1759235063693,9.8563391,4175.2,4175.1,0.2472]
[1759235064905,9.8563391,4175.2,4175.1,0.002]
[1759235067314,9.7363391,4175.2,4175.1,0.002]
[1759235070127,9.7353391,4175.2,4175.1,0.6795]
[1759235070328,8.47743487,4175.2,4175.1,0.6795]
[1759235070527,8.47743487,4175.2,4175.1,0.2472]
[1759235071637,8.47743487,4175.2,4175.1,0.6795]
[1759235071841,8.47743487,4175.2,4175.1,0.2472]
[1759235073804,8.47743487,4175.2,4175.1,0.002]
[1759235074128,9.56478048,4175.2,4175.1,0.002]
[1759235075729,6.84078048,4175.2,4175.1,0.002]
[1759235075933,9.56478048,4175.2,4175.1,0.002]
[1759235076836,10.01068048,4175.2,4175.1,0.002]
[1759235077051,15.59864731,4175.2,4175.1,0.002]
[1759235077331,15.71864731,4175.2,4175.1,0.002]
[1759235079153,2.39532432,4174.8,4174.7,0.002]
[1759235079308,13.45333118,4174.8,4174.7,0.002]
[1759235079508,14.07053118,4174.8,4174.7,0.002]
[1759235080407,14.16662669,4174.8,4174.7,0.002]
[1759235081241,15.45982376,4174.8,4174.7,0.002]
[1759235081439,16.96739659,4174.8,4174.7,0.002]
[1759235082912,15.67419952,4174.8,4174.7,0.002]
[1759235083743,15.50289952,4174.8,4174.7,0.002]
[1759235085739,15.67419952,4174.8,4174.7,0.002]
[1759235085939,15.50289952,4174.8,4174.7,0.002]
[1759235086344,14.76995544,4174.8,4174.7,0.002]
[1759235087339,9.64033269,4174.8,4174.7,0.002]
[1759235087540,14.32405544,4174.8,4174.7,0.002]
[1759235087837,14.75835544,4174.8,4174.7,0.002]
[1759235088628,14.32405544,4174.8,4174.7,0.002]
[1759235088834,14.75835544,4174.8,4174.7,0.002]
[1759235089018,14.92965544,4174.8,4174.7,0.002]
[1759235089219,15.04965544,4174.8,4174.7,0.002]
[1759235089745,14.44405544,4174.8,4174.7,0.002]
[1759235089944,15.04965544,4174.8,4174.7,0.002]
[1759235094058,11.72005544,4174.8,4174.7,0.002]
[1759235094253,14.44405544,4174.8,4174.7,0.002]
[1759235098665,14.87835544,4174.8,4174.7,0.002]
[1759235098963,15.04965544,4174.8,4174.7,0.002]
[1759235099163,14.87835544,4174.8,4174.7,0.002]
[1759235099375,15.04965544,4174.8,4174.7,0.002]
[1759235099865,14.87835544,4174.8,4174.7,0.002]
[1759235100039,14.44405544,4174.8,4174.7,0.002]
[1759235100551,4.51633269,4174.8,4174.7,0.6973]
[1759235100877,7.73541983,4174.8,4174.7,0.6973]
[1759235101076,8.25275986,4174.8,4174.7,0.6973]
[1759235107108,8.25279632,4174.8,4174.7,0.6973]
[1759235108299,8.25279632,4174.8,4174.7,14.502]
[1759235108495,8.25279632,4174.8,4174.7,14.739]
[1759235108793,8.25279632,4174.8,4174.7,14.502]
[1759235109188,8.25279632,4174.8,4174.7,0.239]
[1759235110592,8.25279632,4174.8,4174.7,0.002]
[1759235110994,8.25279632,4174.8,4174.7,0.239]
[1759235111187,8.25279632,4174.8,4174.7,0.6973]
[1759235112183,8.25379632,4174.8,4174.7,0.6973]
[1759235112403,8.25379632,4174.8,4174.7,0.6737]
[1759235112404,5.858472,4174.8,4174.7,0.6737]
[1759235112701,8.25379632,4174.8,4174.7,0.6737]
[1759235114100,8.25379632,4174.8,4174.7,0.002]
[1759235114474,8.25379632,4174.8,4174.7,0.2486]
[1759235115504,8.25379632,4174.8,4174.7,0.002]
[1759235116095,8.25379632,4174.8,4174.7,0.2486]
[1759235117111,8.25379632,4174.8,4174.7,0.687]
[1759235117688,5.858472,4174.8,4174.7,0.687]
[1759235118034,5.76237649,4174.8,4174.7,0.687]
[1759235118393,8.15770081,4174.8,4174.7,0.687]
[1759235118996,8.15770081,4174.8,4174.7,15.187]
[1759235119513,8.15770081,4174.8,4174.7,14.502]
[1759235119694,8.15770081,4174.8,4174.7,14.7294]
[1759235120440,8.15770081,4174.8,4174.7,14.502]
[1759235120741,9.21299212,4174.8,4174.7,0.002]
[1759235121329,9.44239212,4174.8,4174.7,0.002]
[1759235121827,8.15770081,4174.8,4174.7,0.002]
[1759235122624,8.38510081,4174.8,4174.7,0.002]
[1759235124029,3.03837649,4174.8,4174.7,0.002]
[1759235124252,5.244,4174.8,4174.7,0.687]
[1759235124604,5.244,4174.8,4174.7,15.187]
[1759235125233,5.76137649,4174.8,4174.7,15.187]
[1759235125717,8.15670081,4174.8,4174.7,15.187]
[1759235126204,5.76137649,4174.8,4174.7,15.187]
[1759235127938,5.76137649,4174.8,4174.7,0.687]
[1759235128111,8.15670081,4174.8,4174.7,0.687]
[1759235128311,8.15670081,4174.8,4174.7,15.187]
[1759235129439,5.76137649,4174.8,4174.7,15.187]
[1759235129617,5.244,4174.8,4174.7,15.187]
[1759235129824,5.76137649,4174.8,4174.7,15.187]
[1759235130343,8.15670081,4174.8,4174.7,15.187]
[1759235131334,5.76137649,4174.8,4174.7,15.187]
[1759235131540,5.244,4174.8,4174.7,15.187]
[1759235131738,5.76137649,4174.8,4174.7,15.187]
[1759235132741,5.244,4174.8,4174.7,15.187]
[1759235133060,5.76137649,4174.8,4174.7,15.187]
[1759235133240,0.51837649,4174.8,4174.7,17.5771]
[1759235133410,0.001,4174.8,4174.7,17.5771]
[1759235133816,0.001,4174.8,4174.7,20.3001]
[1759235135343,0.001,4174.8,4174.7,22.6954817]
[1759235136010,0.001,4174.8,4174.7,17.5771]
[1759235136345,0.001,4174.8,4174.7,20.3001]
[1759235136726,0.001,4174.8,4174.7,22.6954817]
[1759235139450,0.001,4174.8,4174.7,22.8154817]
[1759235141152,0.001,4174.8,4174.7,17.2395]
[1759235141318,0.001,4174.8,4174.7,19.7351]
[1759235141675,0.001,4174.8,4174.7,17.0121]
[1759235141820,0.4718,4174.8,4174.7,14.622]
[1759235142018,0.001,4174.8,4174.7,14.502]
[1759235142217,0.001,4174.8,4174.7,15.294]
[1759235145444,0.476,4174.8,4174.7,15.294]
[1759235145957,0.001,4174.8,4174.7,15.294]
[1759235146339,0.001,4174.8,4174.7,0.794]
[1759235146954,0.001,4174.8,4174.7,15.294]
[1759235149331,0.001,4174.8,4174.7,15.5422]
[1759235150241,0.001,4174.8,4174.7,17.62047301]
[1759235151461,0.001,4174.8,4174.7,15.5422]
[1759235152164,0.001,4174.8,4174.7,15.294]
[1759235152630,0.001,4174.8,4174.7,15.9827]
[1759235152831,0.001,4174.8,4174.7,21.2210817]
[1759235154038,0.001,4174.8,4174.7,18.8257]
[1759235154234,0.001,4174.8,4174.7,21.18756411]
[1759235155662,0.001,4174.8,4174.7,23.58294581]
[1759235159439,0.001,4174.8,4174.7,25.98294581]
[1759235159845,0.001,4174.8,4174.7,26.07897373]
[1759235161742,0.001,4174.8,4174.7,23.35597373]
[1759235161936,0.001,4174.8,4174.7,26.07797373]
[1759235169600,0.001,4174.8,4174.7,25.95797373]
[1759235169770,0.001,4174.8,4174.7,23.23597373]
[1759235169957,0.001,4174.8,4174.7,25.95797373]
[1759235170356,0.001,4174.8,4174.7,25.51747373]
[1759235172060,0.001,4174.8,4174.7,25.95797373]
[1759235175160,0.001,4174.8,4174.7,25.51747373]
[1759235175788,0.001,4174.8,4174.7,25.98127373]
[1759235179593,0.001,4175.2,4174.7,25.98127373]
[1759235179594,0.001,4175.2,4174.8,2.4]
[1759235179900,0.001,4175.2,4175.1,3.192]
[1759235180189,0.001,4175.3,4175.2,5.58709484]
[1759235180390,0.001,4175.3,4175.2,6.27669484]
[1759235180865,0.001,4175.3,4175.2,20.87270593]
[1759235182698,0.001,4175.7,4175.4,0.792]
[1759235183004,0.001,4175.7,4175.6,5.5868654]
[1759235183310,0.001,4175.7,4175.6,20.2068654]
[1759235183490,0.001,4175.7,4175.6,20.8964654]
[1759235183667,0.001,4175.7,4175.6,20.4422654]
[1759235184106,0.001,4175.7,4175.6,20.53826774]
[1759235184269,0.001,4175.7,4175.6,22.90013185]
[1759235186173,0.001,4175.7,4175.6,23.13305226]
[1759235186993,0.001,4175.7,4175.6,23.36845226]
[1759235187877,0.001,4175.7,4175.6,23.82265226]
[1759235188986,0.001,4175.7,4175.6,23.36845226]
[1759235189898,0.001,4175.7,4175.6,23.13305226]
[1759235190105,0.001,4175.7,4175.6,26.08945226]
[1759235190800,0.001,4175.7,4175.6,26.54365226]
[1759235191690,0.001,4175.7,4175.6,23.82265226]
[1759235191887,0.001,4175.7,4175.6,26.54365226]
[1759235193976,0.001,4175.7,4175.6,26.08945226]
[1759235195687,0.001,4175.7,4175.6,26.54365226]
[1759235200701,0.001,4175.7,4175.6,25.85405226]
[1759235202513,0.4443,4175.7,4175.6,25.85405226]
[1759235206396,0.001,4175.7,4175.6,25.85405226]
[1759235211629,0.001,4175.7,4175.6,26.10265226]
[1759235211825,0.001,4175.7,4175.6,25.85405226]
[1759235213097,0.001,4175.7,4175.6,23.13305226]
[1759235213300,0.4443,4175.7,4175.6,25.85305226]
[1759235215347,0.001,4175.7,4175.6,25.85305226]
[1759235216259,0.001,4175.7,4175.6,26.10165226]
[1759235216842,0.001,4176.1,4176.0,3.18663601]
[1759235217047,0.001,4176.1,4176.0,6.6242512]
[1759235217338,0.001,4176.1,4176.0,9.3462512]
[1759235217543,0.001,4176.1,4176.0,24.2905512]
[1759235217741,0.001,4176.1,4176.0,21.5685512]
[1759235218041,0.4443,4176.1,4176.0,24.2915512]
[1759235218226,0.6166,4176.1,4176.0,24.2915512]
[1759235219100,0.4443,4176.1,4176.0,24.2915512]
[1759235219306,0.001,4176.1,4176.0,24.2915512]
[1759235220122,0.6166,4176.1,4176.0,24.2915512]
[1759235220446,0.4443,4176.1,4176.0,24.2915512]
[1759235220954,0.4443,4176.1,4176.0,19.1685512]
[1759235221248,0.4443,4176.1,4176.0,20.85393601]
[1759235222961,0.001,4176.1,4176.0,20.85393601]
[1759235223660,0.4443,4176.1,4176.0,18.13093601]
[1759235223858,0.4443,4176.1,4176.0,20.40863601]
[1759235223859,0.6166,4176.1,4176.0,20.40863601]
[1759235225361,0.6166,4176.1,4176.0,17.68663601]
[1759235225557,0.6166,4176.1,4176.0,20.40863601]
[1759235226073,0.6166,4176.1,4176.0,17.68663601]
[1759235226275,0.6166,4176.1,4176.0,20.40863601]
[1759235226840,0.6166,4176.1,4176.0,20.52863601]
[1759235227044,0.6166,4176.1,4176.0,15.412]
[1759235227361,0.6166,4176.1,4176.0,17.342]
[1759235227564,5.82298958,4176.1,4176.0,14.5]
[1759235227869,8.21756825,4176.1,4176.0,14.5]
[1759235228243,5.82298958,4176.1,4176.0,14.5]
[1759235229270,1.1460536,4176.1,4176.0,14.5]
[1759235229668,3.54063227,4176.1,4176.0,14.5]
[1759235230751,2.39475609,4175.8,4175.7,0.792]
[1759235230955,3.60389493,4175.8,4175.7,0.792]
[1759235231469,3.60389493,4175.8,4175.7,14.5]
[1759235231658,1.20913884,4175.8,4175.7,14.5]
[1759235231860,2.39480805,4175.7,4175.3,0.47097782]
[1759235232060,8.13940765,4175.6,4175.3,0.002]
[1759235232259,7.68744457,4175.6,4175.3,15.294]
[1759235232441,3.02063399,4175.5,4175.3,15.294]
[1759235232974,0.6257,4175.4,4175.3,15.294]
[1759235234665,0.6257,4175.4,4175.3,14.502]
[1759235234870,3.67094372,4175.4,4175.3,14.502]
[1759235236290,3.67094372,4175.4,4175.3,0.002]
[1759235237986,6.07094372,4175.4,4175.3,0.002]
[1759235238497,8.79294372,4175.4,4175.3,0.002]
[1759235238873,2.52,4175.4,4175.3,0.002]
[1759235239189,4.91498012,4175.4,4175.3,0.002]
[1759235239899,5.38208012,4175.4,4175.3,0.002]
[1759235241190,10.2313161,4175.4,4175.3,0.002]
[1759235242068,12.9543161,4175.4,4175.3,0.002]
[1759235242300,14.49884135,4175.4,4175.3,0.002]
[1759235242998,9.64960537,4175.4,4175.3,0.002]
[1759235243204,14.49884135,4175.4,4175.3,0.002]
[1759235243802,11.77584135,4175.4,4175.3,0.002]
[1759235244010,14.49884135,4175.4,4175.3,0.002]
[1759235247102,13.73944135,4175.4,4175.3,0.002]
[1759235247407,13.85844135,4175.4,4175.3,0.002]
[1759235248807,14.32554135,4175.4,4175.3,0.002]
[1759235251299,14.49784135,4175.4,4175.3,0.002]
[1759235252385,14.32554135,4175.4,4175.3,0.002]
[1759235252585,14.49784135,4175.4,4175.3,0.002]
[1759235253516,11.13644135,4175.4,4175.3,0.002]
[1759235253817,13.85944135,4175.4,4175.3,0.002]
[1759235256348,14.37559016,4175.4,4175.3,0.002]
[1759235262160,14.84269016,4175.4,4175.3,0.002]
[1759235265278,14.37559016,4175.4,4175.3,0.002]
[1759235268879,14.83489016,4175.4,4175.3,0.002]
[1759235270486,10.15795418,4175.4,4175.3,0.002]
[1759235270685,9.69865418,4175.4,4175.3,0.002]
[1759235272200,9.69865418,4175.4,4175.3,0.2352]
[1759235272376,8.15412893,4175.4,4175.3,0.2352]
[1759235272705,8.15312893,4175.4,4175.3,0.7089]
[1759235273719,8.15312893,4175.4,4175.3,0.002]
[1759235280116,8.61242893,4175.4,4175.3,0.002]
[1759235280917,8.78472893,4175.4,4175.3,0.002]
[1759235281097,10.44443478,4175.4,4175.3,0.002]
[1759235281492,10.27213478,4175.4,4175.3,0.002]
[1759235281694,10.44443478,4175.4,4175.3,0.002]
[1759235282417,10.27213478,4175.4,4175.3,0.002]
[1759235282797,10.44443478,4175.4,4175.3,0.002]
[1759235283611,10.27213478,4175.4,4175.3,0.002]
[1759235283818,10.44443478,4175.4,4175.3,0.002]
[1759235284531,10.27213478,4175.4,4175.3,0.002]
[1759235287436,9.81283478,4175.4,4175.3,0.002]
[1759235291115,9.81283478,4175.4,4175.3,0.2352]
[1759235291317,8.15312893,4175.4,4175.3,0.2352]
[1759235294914,5.43112893,4175.4,4175.3,0.7186]
[1759235295112,8.15312893,4175.4,4175.3,0.7186]
[1759235295313,8.15312893,4175.4,4175.3,0.2488]
[1759235295913,8.15312893,4175.4,4175.3,0.7186]
[1759235298570,8.15312893,4175.4,4175.3,15.2186]
[1759235299477,3.03614881,4175.4,4175.3,15.2186]
[1759235299673,5.43112893,4175.4,4175.3,15.2186]
[1759235301439,5.43112893,4175.4,4175.3,0.7186]
[1759235301954,5.43112893,4175.4,4175.3,15.2186]